fUST/lending_fUST_20251014
["ID","MTS","AMOUNT","RATE_DAILY","PERIOD"]
[391141664,1760391051707,-432.25765304,0.00024657,2]
[391141665,1760391051716,-193.505318,0.00024657,7]
[391141666,1760391051726,-193.5053116,0.00024657,7]
[391141667,1760391051735,-169.55676492,0.00024657,2]
[391141668,1760391051744,-500.0,0.00024657,2]
[391141669,1760391051753,-500.0,0.00024657,2]
[391141670,1760391051763,-500.0,0.00024657,2]
[391141671,1760391051772,-500.0,0.00024657,2]
[391141672,1760391051781,-500.0,0.00024657,2]
[391141673,1760391051791,-500.0,0.00024657,2]
[391141674,1760391051801,-500.0,0.00024657,2]
[391141675,1760391051811,-500.0,0.00024657,2]
[391141676,1760391051820,-500.0,0.00024657,2]
[391141677,1760391051829,-500.0,0.00024657,2]
[391141678,1760391051838,-500.0,0.00024657,2]
[391141679,1760391051847,-500.0,0.00024657,2]
[391141680,1760391051856,-500.0,0.00024657,2]
[391141681,1760391051866,-194.31709119,0.00024657,2]
[391141682,1760391051875,-500.0,0.00024657,2]
[391141683,1760391051973,-500.0,0.00024657,2]
[391141684,1760391051982,-500.0,0.00024657,2]
[391141685,1760391051992,-501.65651087,0.00024657,2]
[391141686,1760391052001,-627.4177798,0.00024657,2]
[391141687,1760391052010,-500.0,0.00024657,2]
[391141688,1760391052019,-500.0,0.00024657,2]
[391141689,1760391052029,-500.0,0.00024657,2]
[391141690,1760391052039,-500.0,0.00024657,2]
[391141691,1760391052048,-500.0,0.00024657,2]
[391141692,1760391052057,-500.0,0.00024657,2]
[391141693,1760391052066,-500.0,0.00024657,2]
[391141694,1760391052075,-500.0,0.00024657,2]
[391141695,1760391052084,-151.0,0.00024657,7]
[391141696,1760391052094,-500.0,0.00024657,2]
[391141697,1760391052103,-151.0,0.00024657,7]
[391141698,1760391052112,-500.0,0.00024657,2]
[391141699,1760391052121,-151.0,0.00024657,7]
[391141700,1760391052130,-500.0,0.00024657,2]
[391141701,1760391052139,-507.72946808,0.00024657,2]
[391141702,1760391052148,-500.0,0.00024657,2]
[391141703,1760391052157,-539.7431053,0.00024657,2]
[391141704,1760391052167,-500.0,0.00024657,2]
[391141705,1760391052178,-500.0,0.00024657,2]
[391141706,1760391052188,-500.0,0.00024657,2]
[391141707,1760391052199,-500.0,0.00024657,2]
[391141708,1760391052209,-500.0,0.00024657,2]
[391141709,1760391052219,-500.0,0.00024657,2]
[391141710,1760391052229,-500.0,0.00024657,2]
[391141711,1760391052240,-500.0,0.00024657,2]
[391141712,1760391052251,-500.0,0.00024657,2]
[391141713,1760391052261,-500.0,0.00024657,2]
[391141714,1760391052270,-500.0,0.00024657,2]
[391141715,1760391052280,-500.0,0.00024657,2]
[391141716,1760391052290,-151.0,0.00024657,7]
[391141717,1760391052300,-249.72285767,0.00024657,2]
[391141718,1760391052310,-151.0,0.00024657,7]
[391141719,1760391052321,-506.96995662,0.00024657,2]
[391141720,1760391052330,-151.0,0.00024657,7]
[391141721,1760391052340,-151.0,0.00024657,7]
[391141722,1760391052349,-230.22554,0.00024657,7]
[391141723,1760391052359,-151.0,0.00024657,7]
[391141724,1760391052368,-151.0,0.00024657,7]
[391141725,1760391052377,-151.0,0.00024657,7]
[391141726,1760391052387,-151.0,0.00024657,7]
[391141727,1760391052399,-1111.2,0.00024657,2]
[391141728,1760391052408,-1111.2,0.00024657,2]
[391141729,1760391052418,-1111.2,0.00024657,2]
[391141730,1760391052431,-1111.2,0.00024657,2]
[391141731,1760391052441,-1111.2,0.00024657,2]
[391141732,1760391052451,-1111.2,0.00024657,2]
[391141733,1760391052460,-1111.2,0.00024657,2]
[391141734,1760391052469,-1111.2,0.00024657,2]
[391141735,1760391052479,-1111.2,0.00024657,2]
[391141736,1760391052488,-1111.2,0.00024657,2]
[391141737,1760391052497,-1111.2,0.00024657,2]
[391141738,1760391052506,-1111.2,0.00024657,2]
[391141739,1760391052515,-732.66575696,0.00024657,2]
[391141740,1760391052525,-1111.2,0.00024657,2]
[391141741,1760391052534,-1111.2,0.00024657,2]
[391141742,1760391052544,-1111.2,0.00024657,2]
[391141743,1760391052553,-1111.2,0.00024657,2]
[391141744,1760391052562,-1111.2,0.00024657,2]
[391141745,1760391052571,-1111.2,0.00024657,2]
[391141746,1760391052581,-1111.2,0.00024657,2]
[391141747,1760391052590,-1111.2,0.00024657,2]
[391141748,1760391052599,-1111.2,0.00024657,2]
[391141749,1760391052608,-1111.2,0.00024657,2]
[391141750,1760391052617,-1111.2,0.00024657,2]
[391141751,1760391052626,-1111.28308722,0.00024657,2]
[391141752,1760391052635,-500.0,0.00024657,2]
[391141753,1760391052644,-501.9799015,0.00024657,2]
[391141754,1760391052653,-500.0,0.00024657,2]
[391141755,1760391052663,-500.0,0.00024657,2]
[391141756,1760391052672,-500.0,0.00024657,2]
[391141757,1760391052681,-500.0,0.00024657,2]
[391141758,1760391052690,-500.0,0.00024657,2]
[391141759,1760391052699,-500.0,0.00024657,2]
[391141760,1760391052708,-500.0,0.00024657,2]
[391141761,1760391052717,-500.0,0.00024657,2]
[391141762,1760391052726,-500.0,0.00024657,2]
[391141763,1760391052735,-500.0,0.00024657,2]
[391141764,1760391052745,-500.0,0.00024657,2]
[391141765,1760391052754,-500.0,0.00024657,2]
[391141766,1760391052764,-231.21393217,0.00024657,2]
[391141767,1760391052773,-500.0,0.00024657,2]
[391141768,1760391052783,-500.0,0.00024657,2]
[391141769,1760391052792,-500.0,0.00024657,2]
[391141770,1760391052802,-500.0,0.00024657,2]
[391141771,1760391052811,-500.0,0.00024657,2]
[391141772,1760391052821,-500.0,0.00024657,2]
[391141773,1760391052831,-500.0,0.00024657,2]
[391141774,1760391052840,-500.0,0.00024657,2]
[391141775,1760391052851,-500.0,0.00024657,2]
[391141776,1760391052862,-500.0,0.00024657,2]
[391141777,1760391052872,-500.0,0.00024657,2]
[391141778,1760391052881,-500.0,0.00024657,2]
[391141779,1760391052890,-500.0,0.00024657,2]
[391141780,1760391052899,-500.0,0.00024657,2]
[391141781,1760391052908,-7501.07,0.00024657,2]
[391141782,1760391052918,-500.0,0.00024657,2]
[391141783,1760391052927,-500.0,0.00024657,2]
[391141784,1760391052937,-7501.07,0.00024657,2]
[391141785,1760391052946,-500.0,0.00024657,2]
[391141786,1760391052957,-500.0,0.00024657,2]
[391141787,1760391052966,-414.52878887,0.00024657,2]
[391141788,1760391052977,-7501.07,0.00024657,2]
[391141789,1760391052986,-562.59661478,0.00024657,2]
[391141790,1760391052998,-7501.07,0.00024657,2]
[391141791,1760391053007,-7501.07,0.00024657,2]
[391141792,1760391053016,-7501.07,0.00024657,2]
[391141793,1760391053026,-151.0,0.00024657,7]
[391141794,1760391053035,-7501.07,0.00024657,2]
[391141795,1760391053045,-7501.07,0.00024657,2]
[391141796,1760391053055,-7501.07,0.00024657,2]
[391141797,1760391053064,-7501.07,0.00024657,2]
[391141798,1760391053074,-7501.07,0.00024657,2]
[391141799,1760391053083,-501.96784732,0.00024657,2]
[391141800,1760391053093,-7501.07,0.00024657,2]
[391141801,1760391053102,-7501.07,0.00024657,2]
[391141802,1760391053112,-7501.07,0.00024657,2]
[391141803,1760391053121,-7501.07,0.00024657,2]
[391141804,1760391053130,-500.0,0.00024657,2]
[391141805,1760391053140,-7501.07,0.00024657,2]
[391141806,1760391053149,-500.0,0.00024657,2]
[391141807,1760391053159,-7501.07,0.00024657,2]
[391141808,1760391053168,-500.0,0.00024657,2]
[391141809,1760391053178,-7501.07,0.00024657,2]
[391141810,1760391053187,-500.0,0.00024657,2]
[391141811,1760391053196,-7501.07,0.00024657,2]
[391141812,1760391053206,-500.0,0.00024657,2]
[391141813,1760391053215,-500.0,0.00024657,2]
[391141814,1760391053224,-500.0,0.00024657,2]
[391141815,1760391053234,-7501.07,0.00024657,2]
[391141816,1760391053244,-500.0,0.00024657,2]
[391141817,1760391053253,-501.89584483,0.00024657,2]
[391141818,1760391053262,-151.0,0.00024657,7]
[391141819,1760391053272,-7501.07,0.00024657,2]
[391141820,1760391053281,-500.0,0.00024657,2]
[391141821,1760391053291,-500.0,0.00024657,2]
[391141822,1760391053300,-500.0,0.00024657,2]
[391141823,1760391053309,-7501.07,0.00024657,2]
[391141824,1760391053318,-500.0,0.00024657,2]
[391141825,1760391053328,-7501.07,0.00024657,2]
[391141826,1760391053337,-500.0,0.00024657,2]
[391141827,1760391053346,-500.0,0.00024657,2]
[391141828,1760391053356,-500.0,0.00024657,2]
[391141829,1760391053365,-7501.20080279,0.00024657,2]
[391141830,1760391053374,-500.0,0.00024657,2]
[391141831,1760391053384,-500.0,0.00024657,2]
[391141832,1760391053395,-500.0,0.00024657,2]
[391141833,1760391053406,-500.0,0.00024657,2]
[391141834,1760391053416,-500.0,0.00024657,2]
[391141835,1760391053426,-500.0,0.00024657,2]
[391141836,1760391053435,-500.0,0.00024657,2]
[391141837,1760391053445,-500.0,0.00024657,2]
[391141838,1760391053454,-500.0,0.00024657,2]
[391141839,1760391053464,-500.0,0.00024657,2]
[391141840,1760391053475,-205.46237567,0.00024657,2]
[391141841,1760391053485,-500.0,0.00024657,2]
[391141842,1760391053494,-500.0,0.00024657,2]
[391141843,1760391053504,-4754.38,0.00024657,2]
[391141844,1760391053514,-500.0,0.00024657,2]
[391141845,1760391053523,-500.0,0.00024657,2]
[391141846,1760391053534,-4754.38,0.00024657,2]
[391141847,1760391053543,-151.0,0.00024657,7]
[391141848,1760391053553,-500.0,0.00024657,2]
[391141849,1760391053563,-500.0,0.00024657,2]
[391141850,1760391053572,-4754.38,0.00024657,2]
[391141851,1760391053582,-186.09987184,0.00024657,2]
[391141852,1760391053593,-180.218721,0.00024657,7]
[391141853,1760391053602,-500.0,0.00024657,2]
[391141854,1760391053612,-4754.38,0.00024657,2]
[391141855,1760391053621,-763.67,0.00024657,2]
[391141856,1760391053630,-500.0,0.00024657,2]
[391141857,1760391053640,-4754.38,0.00024657,2]
[391141858,1760391053650,-763.67,0.00024657,2]
[391141859,1760391053661,-500.0,0.00024657,2]
[391141860,1760391053671,-4754.38,0.00024657,2]
[391141861,1760391053680,-500.0,0.00024657,2]
[391141862,1760391053689,-4754.38,0.00024657,2]
[391141863,1760391053698,-763.67,0.00024657,2]
[391141864,1760391053707,-4754.38,0.00024657,2]
[391141865,1760391053717,-4754.38,0.00024657,2]
[391141866,1760391053726,-763.67,0.00024657,2]
[391141867,1760391053736,-500.0,0.00024657,2]
[391141868,1760391053825,-4754.38,0.00024657,2]
[391141869,1760391053836,-500.0,0.00024657,2]
[391141870,1760391053845,-763.67,0.00024657,2]
[391141871,1760391053854,-4754.38,0.00024657,2]
[391141872,1760391053863,-500.0,0.00024657,2]
[391141873,1760391053872,-763.67,0.00024657,2]
[391141874,1760391053882,-4754.38,0.00024657,2]
[391141875,1760391053891,-500.0,0.00024657,2]
[391141876,1760391053901,-763.67,0.00024657,2]
[391141877,1760391053910,-4754.38,0.00024657,2]
[391141878,1760391053920,-763.67,0.00024657,2]
[391141879,1760391053929,-500.0,0.00024657,2]
[391141880,1760391053939,-4754.38,0.00024657,2]
[391141881,1760391053948,-763.67,0.00024657,2]
[391141882,1760391053957,-500.0,0.00024657,2]
[391141883,1760391053967,-763.67,0.00024657,2]
[391141884,1760391053976,-4754.38,0.00024657,2]
[391141885,1760391053985,-500.0,0.00024657,2]
[391141886,1760391053995,-763.67,0.00024657,2]
[391141887,1760391054005,-4754.38,0.00024657,2]
[391141888,1760391054014,-151.0,0.00024657,7]
[391141889,1760391054023,-500.0,0.00024657,2]
[391141890,1760391054032,-4754.38,0.00024657,2]
[391141891,1760391054041,-500.0,0.00024657,2]
[391141892,1760391054050,-151.0,0.00024657,7]
[391141893,1760391054060,-500.0,0.00024657,2]
[391141894,1760391054073,-4754.38,0.00024657,2]
[391141895,1760391054083,-200.961726,0.00024657,7]
[391141896,1760391054093,-639.8,0.00024657,2]
[391141897,1760391054102,-4754.38,0.00024657,2]
[391141898,1760391054111,-4754.38,0.00024657,2]
[391141899,1760391054120,-763.67,0.00024657,2]
[391141900,1760391054129,-4754.38,0.00024657,2]
[391141901,1760391054142,-763.67,0.00024657,2]
[391141902,1760391054151,-4754.38,0.00024657,2]
[391141903,1760391054160,-763.67,0.00024657,2]
[391141904,1760391054169,-4754.38,0.00024657,2]
[391141905,1760391054179,-763.67,0.00024657,2]
[391141906,1760391054188,-4754.56450617,0.00024657,2]
[391141907,1760391054198,-763.67,0.00024657,2]
[391141908,1760391054208,-500.0,0.00024657,2]
[391141909,1760391054220,-763.67,0.00024657,2]
[391141910,1760391054230,-500.0,0.00024657,2]
[391141911,1760391054239,-500.0,0.00024657,2]
[391141912,1760391054249,-763.67,0.00024657,2]
[391141913,1760391054259,-514.40967739,0.00024657,2]
[391141914,1760391054268,-763.67,0.00024657,2]
[391141915,1760391054278,-500.0,0.00024657,2]
[391141916,1760391054287,-763.67,0.00024657,2]
[391141917,1760391054296,-500.0,0.00024657,2]
[391141918,1760391054306,-763.67,0.00024657,2]
[391141919,1760391054315,-500.0,0.00024657,2]
[391141920,1760391054327,-763.67,0.00024657,2]
[391141921,1760391054337,-763.67,0.00024657,2]
[391141922,1760391054346,-500.0,0.00024657,2]
[391141923,1760391054355,-763.88984351,0.00024657,2]
[391141924,1760391054365,-500.0,0.00024657,2]
[391141925,1760391054374,-2571.72,0.00024657,2]
[391141926,1760391054384,-500.0,0.00024657,2]
[391141927,1760391054396,-2571.72,0.00024657,2]
[391141928,1760391054405,-513.96377609,0.00024657,2]
[391141929,1760391054414,-2571.72,0.00024657,2]
[391141930,1760391054423,-2571.72,0.00024657,2]
[391141931,1760391054433,-2571.72,0.00024657,2]
[391141932,1760391054443,-2571.72,0.00024657,2]
[391141933,1760391054453,-2571.72,0.00024657,2]
[391141934,1760391054463,-2571.72,0.00024657,2]
[391141935,1760391054474,-2571.72,0.00024657,2]
[391141936,1760391054483,-2571.72,0.00024657,2]
[391141937,1760391054493,-2571.72,0.00024657,2]
[391141938,1760391054503,-2571.72,0.00024657,2]
[391141939,1760391054513,-2571.72,0.00024657,2]
[391141940,1760391054522,-2571.72,0.00024657,2]
[391141941,1760391054531,-2571.72,0.00024657,2]
[391141942,1760391054541,-2571.72,0.00024657,2]
[391141943,1760391054551,-2571.72,0.00024657,2]
[391141944,1760391054560,-2571.72,0.00024657,2]
[391141945,1760391054570,-2571.72,0.00024657,2]
[391141946,1760391054580,-2571.72,0.00024657,2]
[391141947,1760391054589,-2009.63482416,0.00024657,2]
[391141948,1760391055781,-1175.02,0.0002388,10]
[391141949,1760391055791,-562.08517584,0.00024657,2]
[391141950,1760391055800,-2262.89482416,0.00024657,2]
[391141951,1760391055904,-308.82517584,0.00024657,2]
[391141952,1760391055914,-74.58482416,0.00024657,2]
[391141953,1760391055936,-2228.62517584,0.00024657,2]
[391141954,1760391055946,-2571.72,0.00024657,2]
[391141955,1760391055956,-2303.21,0.00024657,2]
[391141956,1760391055965,-2571.72534421,0.00024657,2]
[391141957,1760391055975,-2303.21,0.00024657,2]
[391141958,1760391055984,-500.0,0.00024657,2]
[391141959,1760391055993,-2303.21,0.00024657,2]
[391141960,1760391056002,-2303.21,0.00024657,2]
[391141961,1760391056011,-524.60113999,0.00024657,2]
[391141962,1760391056020,-2303.21,0.00024657,2]
[391141963,1760391056030,-2303.21,0.00024657,2]
[391141964,1760391056041,-2303.21,0.00024657,2]
[391141965,1760391056051,-2303.21,0.00024657,2]
[391141966,1760391056060,-500.0,0.00024657,2]
[391141967,1760391056072,-2303.21,0.00024657,2]
[391141968,1760391056084,-500.0,0.00024657,2]
[391141969,1760391056094,-1409.50034823,0.00024657,2]
[391141970,1760391056108,-893.70965177,0.00024657,2]
[391141971,1760391056120,-500.0,0.00024657,2]
[391141972,1760391056130,-2303.21,0.00024657,2]
[391141973,1760391056140,-500.0,0.00024657,2]
[391141974,1760391056149,-2303.21,0.00024657,2]
[391141975,1760391056158,-100.67023969,0.00024657,2]
[391141981,1760391259058,191.9,0.00020302,2]
[391141982,1760391420154,366.220985,0.00013699,2]
[391141983,1760391420400,366.220985,0.00020187,2]
[391141984,1760391420803,189.46,0.00020373,2]
[391141985,1760391858104,-2615.97239337,0.00029,120]
[391141986,1760391858387,-4768.05521326,0.00029,120]
[391141987,1760391858877,187.04,0.00020312,2]
[391141988,1760391859871,-2615.97239337,0.000298,120]
[391141989,1760391934409,184.66,0.00020338,2]
[391141990,1760392013909,182.31,0.00020344,2]
[391141991,1760392093279,179.99,0.00020333,2]
[391141992,1760392190693,177.7,0.00020207,2]
[391142020,1760392232616,-355.4,0.00021169,2]
[391142022,1760392232626,-276.72723227,0.00021242,2]
[391142024,1760392232635,-158.0,0.00021342,4]
[391142026,1760392232644,-214.48000424,0.00021342,2]
[391142028,1760392232654,-89.85869888,0.00021886,2]
[391142039,1760392232748,-910.14130112,0.00021886,2]
[391142041,1760392232758,-246.65200487,0.00021942,2]
[391142043,1760392232767,-533.11,0.00022131,2]
[391142045,1760392232776,-326.15001199,0.00022185,2]
[391142047,1760392232787,-278.82400551,0.00022542,2]
[391142049,1760392232796,-511.03722784,0.000228,2]
[391142051,1760392232805,-264.82197847,0.000228,2]
[391142053,1760392232815,-500.0,0.00022873,2]
[391142055,1760392232824,-500.0,0.00022873,2]
[391142057,1760392232834,-500.50737468,0.00022873,2]
[391142059,1760392232843,-500.0,0.00022873,2]
[391142061,1760392232852,-500.0,0.00022873,2]
[391142063,1760392232862,-1200.0,0.00022878,2]
[391142065,1760392232872,-1200.0,0.00022879,2]
[391142067,1760392232881,-300.0,0.00022879,2]
[391142069,1760392232890,-500.0,0.00022889,2]
[391142071,1760392232899,-290.05012657,0.00022889,2]
[391142073,1760392232908,-279.78595636,0.00022889,2]
[391142075,1760392232917,-500.0,0.00022889,2]
[391142077,1760392232926,-223.97794595,0.00022889,2]
[391142079,1760392232935,-500.0,0.00022889,2]
[391142081,1760392232944,-500.0,0.00022889,2]
[391142083,1760392232952,-500.0,0.00022889,2]
[391142085,1760392232963,-316.41564104,0.00022889,2]
[391142087,1760392232973,-496.8203772,0.00022889,2]
[391142089,1760392232982,-219.66763361,0.00022889,2]
[391142091,1760392232990,-28174.81333917,0.0002289,2]
[391142217,1760392238665,-160.0,0.00022875,2]
[391142218,1760392238675,-437.55861272,0.0002289,2]
[391142220,1760392238686,-6454.05558616,0.0002289,2]
[391142230,1760392238785,-334933.57246195,0.0002289,2]
[391142232,1760392238796,-28113.76,0.000229,7]
[391142234,1760392238806,-402.34485587,0.000229,7]
[391142236,1760392238815,-160.0,0.00023,2]
[391142238,1760392238825,-710.81,0.00023094,2]
[391142240,1760392238834,-310.99600614,0.00023142,2]
[391142242,1760392238844,-300.0,0.00023347,20]
[391142244,1760392238854,-300.0,0.00023347,20]
[391142246,1760392238863,-300.0,0.00023347,20]
[391142248,1760392238874,-300.0,0.00023347,20]
[391142250,1760392238884,-300.0,0.00023347,20]
[391142252,1760392238894,-300.0,0.00023347,20]
[391142254,1760392238904,-300.0,0.00023347,20]
[391142256,1760392238913,-300.0,0.00023347,20]
[391142258,1760392238922,-300.0,0.00023347,20]
[391142260,1760392238931,-300.0,0.00023347,20]
[391142262,1760392238940,-300.0,0.00023347,20]
[391142264,1760392238950,-300.0,0.00023347,20]
[391142265,1760392238959,-300.0,0.00023347,20]
[391142267,1760392238969,-300.0,0.00023347,20]
[391142270,1760392238978,-300.0,0.00023347,20]
[391142272,1760392238988,-600.0,0.00023347,20]
[391142273,1760392238997,-500.0,0.00023347,20]
[391142276,1760392239007,-18603.8837,0.00023382,2]
[391142278,1760392239016,-1000.0,0.00023421,2]
[391142279,1760392239025,-1000.0,0.00023421,2]
[391142280,1760392239034,-1000.0,0.00023421,2]
[391142281,1760392239043,-500.0,0.00023621,20]
[391142282,1760392239053,-343.16800678,0.00023742,2]
[391142283,1760392239063,-500.0,0.00023895,20]
[391142284,1760392239072,-511.03722782,0.00023904,2]
[391142285,1760392239081,-12953.85801077,0.0002393,2]
[391142286,1760392239090,-264.82197846,0.00023961,2]
[391142287,1760392239101,-1500.0,0.00023968,2]
[391142288,1760392239110,-442.51102124,0.00023968,2]
[391142289,1760392239119,-1500.0,0.00023968,2]
[391142290,1760392239128,-888.51,0.00024056,2]
[391142291,1760392239138,-500.0,0.00024169,20]
[391142292,1760392239147,-800.0,0.00024293,2]
[391142293,1760392239156,-800.0,0.00024316,2]
[391142294,1760392239167,-800.0,0.00024327,2]
[391142295,1760392239176,-375.34000741,0.00024342,2]
[391142296,1760392239188,-800.0,0.00024355,2]
[391142297,1760392239197,-800.0,0.00024403,2]
[391142298,1760392239207,-800.0,0.00024407,2]
[391142299,1760392239217,-800.0,0.00024421,2]
[391142300,1760392239226,-236.69472896,0.00024422,2]
[391142301,1760392239236,-800.0,0.00024432,2]
[391142302,1760392239246,-800.0,0.00024435,2]
[391142303,1760392239367,-206.93083301,0.00024443,20]
[391142304,1760392239382,-800.0,0.00024446,2]
[391142305,1760392239393,-196.5,0.00024474,2]
[391142306,1760392239402,-800.0,0.000245,2]
[391142307,1760392239412,-800.0,0.00024516,2]
[391142308,1760392239421,-1505.46787646,0.00024516,2]
[391142309,1760392239430,-2000.0,0.00024516,2]
[391142310,1760392239439,-800.0,0.00024519,2]
[391142311,1760392239449,-800.0,0.0002452,2]
[391142312,1760392239458,-800.0,0.00024527,2]
[391142313,1760392239467,-1000.0,0.00024534,2]
[391142314,1760392239477,-1000.0,0.00024534,2]
[391142315,1760392239486,-680.9639,0.00024534,2]
[391142316,1760392239496,-800.0,0.00024556,2]
[391142317,1760392239505,-28664.73917222,0.00024557,3]
[391142318,1760392239515,-8573.57012456,0.00024557,2]
[391142319,1760392239523,-6677.28746889,0.00024647,2]
[391142378,1760392243686,-979.18,0.00024547,10]
[391142379,1760392243695,-9020.90946305,0.00024647,2]
[391142384,1760392246599,-1103.10162606,0.00024647,2]
[391142436,1760392250769,799.0,0.00029,120]
[391142437,1760392272490,159.24,0.00020203,2]
[391142440,1760392566699,177.57,0.00020192,2]
[391142443,1760392619919,200.0,0.00029,120]
[391142445,1760392639983,200.0,0.00030612,60]
[391142446,1760392641569,175.31,0.00020192,2]
[391142447,1760392721554,176.9,0.00020192,2]
[391142448,1760392800778,174.65,0.00020192,2]
[391142449,1760392816983,10000.0,0.00020972,2]
[391142450,1760392879354,172.43,0.00020193,2]
[391142453,1760392966051,170.23,0.00020194,2]
[391142454,1760393044230,168.06,0.00020211,2]
[391142455,1760393122883,165.93,0.00020209,2]
[391142457,1760393283533,163.81,0.00020175,2]
[391142460,1760393299119,456.49466964,0.00020074,4]
[391142461,1760393363393,161.73,0.00020172,2]
[391142489,1760393431790,-323.46,0.00021132,2]
[391142490,1760393431800,-689.91081618,0.0002114,2]
[391142491,1760393431809,-200.0,0.00021154,2]
[391142492,1760393431819,-208.09450734,0.00021154,2]
[391142493,1760393431828,-163.0,0.0002137,4]
[391142494,1760393431838,-239.30868344,0.00021754,2]
[391142495,1760393431847,-160.173271,0.00021786,2]
[391142496,1760393431856,-485.19,0.00022093,2]
[391142497,1760393431865,-2164.14513664,0.00022253,2]
[391142498,1760393431875,-414.65241935,0.00022253,2]
[391142499,1760393431884,-1200.0,0.00022353,2]
[391142500,1760393431896,-270.52285954,0.00022354,2]
[391142501,1760393431905,-300.0,0.00022697,2]
[391142502,1760393431914,-240.0,0.00022697,2]
[391142503,1760393431923,-300.0,0.00022697,2]
[391142504,1760393431932,-960.0,0.00022698,2]
[391142505,1760393431940,-532.33044569,0.000227,2]
[391142506,1760393431949,-815.98,0.0002278,10]
[391142507,1760393431958,-553.0350886,0.00022789,2]
[391142508,1760393431967,-195.85016945,0.00022789,2]
[391142509,1760393431976,-166.31337524,0.00022789,2]
[391142510,1760393431985,-97860.51490844,0.0002279,2]
[391142511,1760393431996,-871.4536363,0.0002279,2]
[391142667,1760393437830,-271268.03145526,0.0002279,2]
[391142668,1760393437840,-31237.51,0.000228,7]
[391142669,1760393437849,-301.73703565,0.00022954,2]
[391142670,1760393437859,-160.0,0.00023,2]
[391142671,1760393437868,-23599.26,0.00023,3]
[391142672,1760393437878,-1000.0,0.000231,2]
[391142673,1760393437888,-300.0,0.00023245,20]
[391142674,1760393437898,-300.0,0.00023245,20]
[391142675,1760393437908,-300.0,0.00023245,20]
[391142676,1760393437918,-300.0,0.00023245,20]
[391142677,1760393437928,-300.0,0.00023245,20]
[391142678,1760393437937,-300.0,0.00023245,20]
[391142679,1760393437946,-300.0,0.00023245,20]
[391142680,1760393437956,-300.0,0.00023245,20]
[391142681,1760393437968,-300.0,0.00023245,20]
[391142682,1760393437977,-300.0,0.00023245,20]
[391142683,1760393437987,-300.0,0.00023245,20]
[391142684,1760393437996,-300.0,0.00023245,20]
[391142685,1760393438006,-300.0,0.00023245,20]
[391142686,1760393438015,-300.0,0.00023245,20]
[391142687,1760393438024,-300.0,0.00023245,20]
[391142688,1760393438034,-600.0,0.00023245,20]
[391142689,1760393438046,-643.0,0.00023343,2]
[391142690,1760393438056,-1000.0,0.00023406,2]
[391142691,1760393438065,-1000.0,0.00023406,2]
[391142692,1760393438076,-18603.8837,0.00023406,2]
[391142693,1760393438085,-1000.0,0.00023406,2]
[391142694,1760393438095,-151.0,0.00023406,2]
[391142695,1760393438105,-151.0,0.00023406,2]
[391142696,1760393438115,-151.0,0.00023406,2]
[391142697,1760393438124,-500.0,0.00023406,2]
[391142698,1760393438134,-250.0,0.00023406,2]
[391142699,1760393438144,-500.0,0.00023406,2]